Cogmind - Beta 14 @@@ ROGUE MODE // 2024.09.26 @ 15:40:21 // Winter2019/RPGLIKE Player: Bulbasornado Result: Self-destructed Performance ------------- Evolutions (2) 1000 Regions Visited (5) 1000 Robots Destroyed (168) 840 Value Destroyed (5787) 5787 Prototype IDs (19) 380 Alien Tech Used (0) 0 Bonus (966) 966 TOTAL SCORE: 9973 Bonus ------- High Alert Combat Kills 966 Cogmind --------- Core Integrity 132/600 Matter 157/300 Energy 99/100 System Corruption 0% Temperature Cool (3) Movement Flying (30) Location -8/Materials Parts ------- > --- POWER (1) -------- Backup Power I > --- PROPULSION (3) --- VTOL Module Improved Flight Unit Surge Thruster > --- UTILITY (8) ------ Improved Signal Interpreter Improved Targeting Computer Advanced Targeting Computer Reactive Plating Hacking Suite Hacking Suite Hacking Suite > --- WEAPON (2) ------- Heavy Particle Cannon > --- INVENTORY (2) ---- Heavy Particle Cannon Improved Datajack Peak State ------------ > --- POWER ------------ Backup Power I > --- PROPULSION ------- VTOL Module Improved Flight Unit Surge Thruster > --- UTILITY ---------- Improved Signal Interpreter Improved Targeting Computer Advanced Targeting Computer Reactive Plating Hacking Suite Hacking Suite Hacking Suite Hacking Suite > --- WEAPON ----------- Rocket Launcher Improved Datajack > --- INVENTORY -------- Heavy Particle Cannon Heavy Particle Cannon [Rating: 37] Favorites ----------- Power Backup Power I Engine Backup Power I Propulsion Flight Unit Wheel Wheel Hover Unit Hover Unit Flight Unit Flight Unit Utility Light Armor Plating Device Seismic Detector Processor Targeting Computer Hackware Hacking Suite Protection Light Armor Plating Weapon Light Cannon Energy Gun Small Laser Energy Cannon Particle Cannon Ballistic Cannon Light Cannon Launcher Rocket Launcher Impact Weapon Hammer Special Melee Weapon Improved Datajack Build | -11 -10 -10 -9 -9 -8 ------- Run | Yrd Mat Min Mat Min Mat Slots Evolved 10 | 1 5 . 3 . 1 Power . | . . . . . . Propulsion 2 | . 1 . 1 . . Utility 7 | 1 3 . 2 . 1 Weapon 1 | . 1 . . . . Parts Attached 92 | 6 27 8 37 3 11 Power 3 | 2 1 . . . . Engine 3 | 2 1 . . . . Core . | . . . . . . Reactor . | . . . . . . Propulsion 17 | 1 6 2 6 . 2 Treads . | . . . . . . Leg . | . . . . . . Wheel 1 | 1 . . . . . Hover 6 | . 6 . . . . Flight 10 | . . 2 6 . 2 Utility 40 | 2 10 5 14 3 6 Device 15 | 2 4 1 6 2 . Storage . | . . . . . . Processor 10 | . 2 1 4 . 3 Hackware 4 | . . . 3 . 1 Protection 11 | . 4 3 1 1 2 Artifact . | . . . . . . Weapon 32 | 1 10 1 17 . 3 Energy Gun 4 | 1 3 . . . . Energy Cannon 3 | . . . 1 . 2 Ballistic Gun . | . . . . . . Ballistic Cannon 13 | . 5 1 7 . . Launcher 10 | . 1 . 9 . . Special Weapon . | . . . . . . Impact Weapon 1 | . 1 . . . . Slashing Weapon . | . . . . . . Piercing Weapon . | . . . . . . Special Melee Weapon 1 | . . . . . 1 Unidentified Prototypes 1 | . . . . 1 . Parts Lost 3 | . . . 2 . 1 Power . | . . . . . . Propulsion 1 | . . . 1 . . Utility 2 | . . . 1 . 1 Weapon . | . . . . . . Highest Loss Streak 2 | . . . 2 . 1 To Critical Strikes 1 | . . . 1 . . Average Slot Usage (%) 96 | . 98 93 96 99 99 Engine 10 | . 14 10 7 7 7 Hover 8 | . 22 4 . . . Flight 13 | . . 15 23 23 21 Device 17 | . 30 7 19 7 3 Processor 11 | . 4 14 14 15 17 Hackware 4 | . . . 2 23 26 Protection 12 | . 6 20 10 6 7 Energy Cannon 1 | . . . . 7 6 Ballistic Cannon 13 | . 12 19 12 . . Launcher 1 | . . . 2 7 6 Peak Build Rating 37 | 7 10 11 28 34 37 Average Rating 13 | 5 6 9 16 27 32 On Entrance 14 | . 7 10 11 28 28 Naked Turns . | . . . . . . Heaviest Build 22 | 8 15 17 19 17 22 Greatest Support 23 | 10 17 17 23 23 23 Greatest Overweight (x) 1 | . . 1 1 1 . Average Overweight (x) . | . . . . . . Largest Inventory Capacity 2 | . 2 2 2 2 2 Average Capacity 1 | . . 2 2 2 2 Most Carried 2 | . 2 2 2 2 2 Average Carried 1 | . . 1 1 2 1 Final Capacity 2 | . 2 2 2 2 2 Final Carried 2 | . 2 2 2 2 2 Class Distribution -------------------- 74% | Hacker-Mutant 12% | Wizard-Sprinter 12% | Hacker-Sprinter Dominant Class ---------------- Hacker-Mutant | -10/Materials Hacker-Mutant | -10/Mines Hacker-Sprinter | -9/Materials Wizard-Sprinter | -9/Mines Wizard-Sprinter | -8/Materials Resources | -11 -10 -10 -9 -9 -8 ----------- Run | Yrd Mat Min Mat Min Mat Matter Collected 3978 | 260 963 290 1775 57 633 Remotely . | . . . . . . Salvage Created 4403 | 139 851 401 1806 73 1133 Parts 321 | 18 56 13 126 12 96 Haulers Intercepted 12 | . 2 . 6 . 4 Recyclers Shooed 7 | . . 2 2 . 3 Parts Field Recycled . | . . . . . . Retrieved Matter . | . . . . . . Parts Self-Destructed . | . . . . . . Prevented . | . . . . . . Kills | -11 -10 -10 -9 -9 -8 ------- Run | Yrd Mat Min Mat Min Mat Combat Hostiles Destroyed 124 | . 24 5 51 7 37 Cannons 93 | . 24 5 44 5 15 AOE 30 | . . . 7 2 21 Classes Destroyed 15 | 2 6 3 2 . 2 Worker 10 | . 2 1 5 . 2 Builder 4 | . 1 . 2 . 1 Tunneler 9 | 5 . . 2 . 2 Hauler 12 | . 2 . 6 . 4 Recycler 11 | 1 1 3 3 . 3 Operator 2 | . 1 . . . 1 Watcher 10 | . 2 . 5 . 3 Swarmer 13 | . . 1 4 3 5 Cutter 5 | . . . . . 5 Grunt 79 | . 24 . 33 4 18 Brawler 1 | . . . 1 . . Duelist 4 | . . . 3 . 1 Sentry 19 | . . 2 10 . 7 Hunter 1 | . . . . . 1 Assembled 2 | . . 2 . . . Best Kill Streak 13 | 5 4 2 13 3 13 Combat Bots Only 10 | . 4 2 6 3 10 Max Kills in Single Turn 3 | 1 1 1 3 2 3 Gunslinging . | . . . . . . Exploded 2 | . . . 2 2 2 Melee . | . . . . . . Uniques/NPCs Destroyed . | . . . . . . Combat | -11 -10 -10 -9 -9 -8 -------- Run | Yrd Mat Min Mat Min Mat Hostile Shots Fired 318 | . 107 6 106 9 90 Missed 134 | . 46 4 40 4 40 Damage Taken 2968 | . 723 44 1006 44 1151 Core 2127 | . 562 17 649 42 857 Absorbed by Shields . | . . . . . . Redirected to Core 1695 | . 456 17 585 8 629 Ignored by Resistances 73 | . . . . . 73 Core Remaining (%) 97 | 100 . 92 . 100 . Volleys Fired 585 | 19 206 21 185 27 127 Largest 2 | 1 1 2 2 2 2 Hottest 108 | 40 40 70 101 101 108 Shots Fired 758 | 19 206 38 295 29 171 Gun 25 | 19 6 . . . . Cannon 624 | . 200 38 249 27 110 Launcher 109 | . . . 46 2 61 Special . | . . . . . . Kinetic 464 | . 200 38 226 . . Thermal 182 | 19 3 . 23 27 110 Explosive 109 | . . . 46 2 61 Electromagnetic 3 | . 3 . . . . Robot Hit Streak 24 | 6 12 4 24 14 24 Robot Miss Streak 6 | 2 4 5 3 2 6 Penetration Max . | . . . . . . Secondary Targets . | . . . . . . Shots Hit Robots 413 | 15 99 14 163 18 104 Core Hits 240 | 7 35 10 94 9 85 Critical Kills 1 | . . . . . 1 Critical Parts Destroyed . | . . . . . . Critical Strikes 15 | . 7 1 6 . 1 Meltdown 1 | . . . . . 1 Blast 14 | . 7 1 6 . . Melee Attacks 3 | . 3 . . . . Impact 3 | . 3 . . . . Slashing . | . . . . . . Piercing . | . . . . . . Sneak Attacks . | . . . . . . Combat Hostiles . | . . . . . . Follow-up Attacks . | . . . . . . Damage Inflicted 11187 | 161 1835 247 4236 519 4189 Guns 231 | 161 70 . . . . Cannons 6951 | . 1718 247 2862 367 1757 Explosions 4005 | . 47 . 1374 152 2432 Melee . | . . . . . . Ramming . | . . . . . . Kinetic 4485 | . 1718 247 2520 . . Thermal 3112 | 161 68 . 669 367 1847 Explosive 3541 | . . . 1047 152 2342 Electromagnetic 49 | . 49 . . . . Impact . | . . . . . . Slashing . | . . . . . . Piercing . | . . . . . . Highest Corruption 4 | . . . 4 4 . Average Corruption 4 | . . . 4 4 . Corruption Purged . | . . . . . . Corruption Blocked . | . . . . . . Effects 34 | . . . 28 6 . Message Errors 4 | . . . 3 1 . Matter Fused 9 | . . . 8 1 . Heat Flow Errors 5 | . . . 4 1 . Energy Discharges 6 | . . . 4 2 . Data Loss (minor) 1 | . . . 1 . . Data Loss (major) 3 | . . . 2 1 . Misfires 3 | . . . 3 . . Alerts 1 | . . . 1 . . Weapon Failures 2 | . . . 2 . . Overload Shots . | . . . . . . Overflow Damage 224 | . 16 . 93 6 109 Projectiles 56 | . . . 3 6 47 Explosions 168 | . 16 . 90 . 62 Melee . | . . . . . . Knockbacks 29 | . 14 1 14 . . Impact . | . . . . . . Kinetic 29 | . 14 1 14 . . Secondary . | . . . . . . Self-Inflicted Damage 284 | . . . 83 . 201 Shots 7 | . . . 2 . 5 Rammed . | . . . . . . Targets Rammed . | . . . . . . Kicked . | . . . . . . Crushed . | . . . . . . Highest Temperature 342 | . 14 90 265 276 342 Average Temperature 60 | . 5 20 45 94 84 Received Heat Transfer 1158 | . 417 9 375 6 351 Effects 3 | . . . . . 3 Interference 3 | . . . . . 3 Siege Activations . | . . . . . . Robots Corrupted . | . . . . . . Combat Hostiles . | . . . . . . Parts Fried 2 | . 2 . . . . Impact Corruptions . | . . . . . . Robots Melted 1 | . . . . . 1 Combat Hostiles 1 | . . . . . 1 Parts Melted 6 | 1 . . 2 1 2 Heat Transferred 4797 | 375 150 . 842 629 2801 Parts Sabotaged . | . . . . . . Parts Stolen . | . . . . . . Parts Stripped . | . . . . . . Power Chain Reactions 1 | . 1 . . . . Alert | -11 -10 -10 -9 -9 -8 ------- Run | Yrd Mat Min Mat Min Mat Peak Influence 1365 | 30 651 234 1365 774 1299 Initial 503 | . 19 229 . 503 301 Average 331 | 11 321 66 570 647 595 Maximum Alert Level 4 | . 2 1 4 3 4 Low Security (%) 40 | 100 34 81 9 . 7 Level 1 25 | . 37 18 28 . 21 Level 2 21 | . 28 . 32 59 38 Level 3 7 | . . . 16 40 24 Level 4 3 | . . . 12 . 7 Level 5 . | . . . . . . High Security . | . . . . . . Max Security . | . . . . . . Sterilizations 1 | . . . 1 . . Squads Dispatched 35 | . 11 . 12 1 11 Investigation 29 | . 10 . 11 1 7 Extermination . | . . . . . . Reinforcement 5 | . 1 . . . 4 Assault 1 | . . . 1 . . Garrison . | . . . . . . Intercept . | . . . . . . Searches Triggered . | . . . . . . Construction Impeded . | . . . . . . Haulers Reinforced . | . . . . . . Active Scanning Responses . | . . . . . . Cargo Convoy Interrupts . | . . . . . . Stealth | -11 -10 -10 -9 -9 -8 --------- Run | Yrd Mat Min Mat Min Mat Distress Signals 7 | . . . 4 . 3 Communications Jammed . | . . . . . . Distress Signals . | . . . . . . Times Spotted 139 | . 30 6 55 4 44 Peak Tracking Total 6 | . 3 2 5 3 6 Tactical Retreats 2 | . . 1 . . 1 Traps | -11 -10 -10 -9 -9 -8 ------- Run | Yrd Mat Min Mat Min Mat Traps Triggered 2 | . . . 2 . . Indirectly . | . . . . . . Trap Hack Attempts . | . . . . . . Triggered . | . . . . . . Disarmed . | . . . . . . Reprogrammed . | . . . . . . Reused . | . . . . . . Traps Extracted . | . . . . . . Installed . | . . . . . . Triggered . | . . . . . . Machines | -11 -10 -10 -9 -9 -8 ---------- Run | Yrd Mat Min Mat Min Mat Machines Disabled 105 | . 21 3 47 5 29 Max in Single Turn 2 | . 1 1 2 1 2 Machines Repaired . | . . . . . . Machines Dismantled . | . . . . . . Machines Sabotaged 7 | . 4 . 2 . 1 Overloaded Fab Kills . | . . . . . . Hacking | -11 -10 -10 -9 -9 -8 --------- Run | Yrd Mat Min Mat Min Mat Machines Accessed 39 | . 10 . 17 1 11 Terminals 26 | . 7 . 11 1 7 Fabricators . | . . . . . . Repair Stations 4 | . 1 . 2 . 1 Recycling Units 6 | . 2 . 2 . 2 Scanalyzers 3 | . . . 2 . 1 Garrison Access . | . . . . . . Total Hacks 163 | . 43 . 73 3 44 Successful 108 | . 30 . 48 2 28 Failed 52 | . 12 . 24 . 16 Catastrophic 6 | . 1 . 4 . 1 Database Lockouts 3 | . 1 . 1 1 . Manual 111 | . 31 . 45 5 30 Terminals 130 | . 34 . 56 3 37 Fabricators . | . . . . . . Repair Stations 13 | . 3 . 8 . 2 Recycling Units 17 | . 6 . 7 . 4 Scanalyzers 3 | . . . 2 . 1 Garrison Access . | . . . . . . Terminal Hacks 49 | . 8 . 23 1 17 Robot Analysis 3 | . 1 . 1 1 . Prototype ID Bank 11 | . 2 . 5 . 4 Level Access Points 1 | . . . 1 . . Branch Access Points 2 | . . . 1 . 1 Emergency Access Points 2 | . . . 1 . 1 Machine Index 1 | . . . 1 . . Alert Level 2 | . 1 . 1 . . Unreport Threat 15 | . 1 . 7 . 7 Locate Traps 9 | . 2 . 3 . 4 Recall Investigation 1 | . . . 1 . . Recall Assault 1 | . . . 1 . . Hauler Manifests 1 | . 1 . . . . Fabricator Hacks . | . . . . . . Repair Station Hacks 6 | . 1 . 4 . 1 Refit 6 | . 1 . 4 . 1 Recycling Unit Hacks 11 | . 4 . 5 . 2 Report Inventory 6 | . 2 . 2 . 2 Retrieve Matter 2 | . 1 . 1 . . Retrieve Components 3 | . 1 . 2 . . Scanalyzer . | . . . . . . Garrison Access Hacks . | . . . . . . Unauthorized Hacks 42 | . 17 . 16 1 8 Terminals 28 | . 13 . 10 1 4 Assimilate 2 | . . . 2 . . Botnet 9 | . 5 . 4 . . Operators 2 | . 1 . 1 . . Sabotage 14 | . 7 . 3 . 4 Search 1 | . . . . 1 . Fabricators . | . . . . . . Repair Stations 5 | . 2 . 2 . 1 Mechanics 4 | . 1 . 2 . 1 Patch 1 | . 1 . . . . Recycling Units 6 | . 2 . 2 . 2 Tunnel 6 | . 2 . 2 . 2 Scanalyzers 3 | . . . 2 . 1 Extract 3 | . . . 2 . 1 Garrison Access . | . . . . . . Data Cores Recovered . | . . . . . . Used . | . . . . . . Hacking Detections 24 | . 7 . 9 1 7 Full Trace Events 2 | . . . 2 . . Feedback Events . | . . . . . . Feedback Blocked . | . . . . . . Robot Schematics Acquired . | . . . . . . Robots Built . | . . . . . . Authchips . | . . . . . . Time . | . . . . . . Total Robot Build Rating . | . . . . . . Part Schematics Acquired 3 | . . . 2 . 1 Parts Built . | . . . . . . Authchips . | . . . . . . Time . | . . . . . . Total Part Build Rating . | . . . . . . Parts Repaired . | . . . . . . Time . | . . . . . . Parts Recycled . | . . . . . . Recycled Matter . | . . . . . . Retrieved Matter 184 | . 66 . 118 . . Retrieved Components 22 | . 10 . 12 . . Parts Scanalyzed . | . . . . . . Part Schematics Acquired . | . . . . . . Parts Damaged . | . . . . . . Bothacking | -11 -10 -10 -9 -9 -8 ------------ Run | Yrd Mat Min Mat Min Mat Used RIF Installer . | . . . . . . Robots Hacked . | . . . . . . Non-combat . | . . . . . . Combat . | . . . . . . Robot Hacks Applied . | . . . . . . Relay Couplers Released . | . . . . . . Fabnet Peak Effective % . | . . . . . . Robots Rewired . | . . . . . . Allies Hacked . | . . . . . . Hacks Repelled . | . . . . . . Allies | -11 -10 -10 -9 -9 -8 -------- Run | Yrd Mat Min Mat Min Mat Total Allies 4 | . . 1 1 2 . Largest Group 2 | . . 1 1 2 . Highest-Rated Group 49 | . . 31 10 49 . Highest-Rated Ally 31 | . . 31 10 31 . Total Orders . | . . . . . . Ally Attacks . | . . . . . . Total Damage . | . . . . . . Kills . | . . . . . . Allies Corrupted . | . . . . . . Allies Melted . | . . . . . . Intel | -11 -10 -10 -9 -9 -8 ------- Run | Yrd Mat Min Mat Min Mat Robot Analysis Total 3 | . 1 . 1 1 . Derelict Logs Recovered 2 | . . 1 . 1 . Drone Launches . | . . . . . . Drone Recoveries . | . . . . . . Exploration | -11 -10 -10 -9 -9 -8 ------------- Run | Yrd Mat Min Mat Min Mat Turns Passed 6919 | 96 2097 2215 1633 221 657 Spaces Moved 6366 | 50 2281 879 1955 467 734 Core 12 | 5 . . . 7 . Treads . | . . . . . . Legs . | . . . . . . Wheels 270 | 45 225 . . . . Hover 2401 | . 2056 345 . . . Flight 3683 | . . 534 1955 460 734 Fastest Speed 29 | 50 56 37 29 30 30 Average Speed 43 | 77 58 46 31 31 30 Slowest Speed 120 | 80 80 120 117 100 34 Overloaded Moves . | . . . . . . Propulsion Burnouts . | . . . . . . Robots Hopped 35 | . . 2 20 5 8 Cave-ins Triggered . | . . . . . . Exploration Rate (%) 79 | 3 100 98 100 95 78 Regions Visited 5 Branch Regions 2 Pre-discovered Areas 7 | . 2 . 2 1 2 Known Exits Taken 4 | . 1 1 1 1 . Unknown Exits Taken 1 | 1 . . . . . Scrap Searched 3 | . . 1 . 2 . Spaces Dug 58 | . . . 18 . 40 Terrain Destroyed 1039 | . 2 . 438 23 576 Melee . | . . . . . . Projectile 10 | . . . . . 10 AOE 1029 | . 2 . 438 23 566 Terrain Rammed . | . . . . . . Walls Destroyed . | . . . . . . Machines Disabled . | . . . . . . Actions | -11 -10 -10 -9 -9 -8 --------- Run | Yrd Mat Min Mat Min Mat Total 9728 | 85 2832 2649 2663 508 991 Wait 2535 | 10 264 1735 428 10 88 Move 6292 | 49 2280 875 1914 456 718 Hop 34 | . . 1 20 5 8 Pick Up 12 | . 3 1 6 . 2 Fast Attach 51 | 6 19 6 11 3 6 Attach 3 | . 1 . 1 . 1 Detach 4 | . 1 . 2 . 1 Swap 38 | . 7 2 25 . 4 Drop 60 | 1 22 7 21 3 6 Fire 585 | 19 206 21 185 27 127 Melee 3 | . 3 . . . . Ram . | . . . . . . Kick . | . . . . . . Crush . | . . . . . . Escape Stasis . | . . . . . . Rewire . | . . . . . . Trap . | . . . . . . Miscellaneous 111 | . 26 1 50 4 30 Route ------- -11/Scrapyard -10/Materials (discovered 6 exits: *Mat x3 / *Min x2 / *Sub) -10/Mines (discovered 4 exits: *Mat x2 / [*Exi] / Sub) -9/Materials (discovered 5 exits: *Mat x3 / *Min x2) -9/Mines (discovered 3 exits: *Mat x2 / [*Zio]) -8/Materials (discovered 2 exits: *Fac x2) History --------- Turn | Location | Event 15 | -11/Scrapyard | Discovered new exit (range 15) 82 | -11/Scrapyard | Upgraded with Utility slot (x1) 97 | -11/Scrapyard | Entered Materials 316 | -10/Materials | Build established: Hacker-Mutant 421 | -10/Materials | Discovered new exit (range 11) 449 | -10/Materials | Reached level 2 502 | -10/Materials | Upgraded with Propulsion slot (x1) 631 | -10/Materials | Discovered new exit (range 10) 690 | -10/Materials | Central database locked down 695 | -10/Materials | Discovered new exit (range 7) 747 | -10/Materials | Discovered new exit (range 5) 834 | -10/Materials | Discovered new exit (range 15) 925 | -10/Materials | Reached level 3 932 | -10/Materials | Upgraded with Utility slot (x1) 937 | -10/Materials | Identified exit to Materials 1471 | -10/Materials | Identified exit to Mines 1561 | -10/Materials | Upgraded with Utility slot (x1) 1594 | -10/Materials | Discovered new exit (range 13) 1606 | -10/Materials | Reached level 4 1972 | -10/Materials | Upgraded with Utility slot (x1) 2033 | -10/Materials | Reached level 5 2077 | -10/Materials | Upgraded with Weapon slot (x1) 2194 | -10/Materials | Entered Mines 2197 | -10/Mines | Received a Mining Laser from a helpful Derelict 2212 | -10/Mines | Assembled infested the area 2554 | -10/Mines | A weapon hastily lodged in a ceiling crevice suddenly fell to the ground 2557 | -10/Mines | Discovered exit to Materials (range 5) 2664 | -10/Mines | Discovered exit to Materials (range 4) 2699 | -10/Mines | Deemed a non-threat by the Exiles lab entrance 2699 | -10/Mines | Discovered new exit (range 5) 2751 | -10/Mines | Identified exit to Subcaves 2777 | -10/Mines | YI-UF0 nonchalantly dropped a Grenade Launcher on the ground 4409 | -10/Mines | Entered Materials 4411 | -9/Materials | Reached level 6 4411 | -9/Materials | Upgraded with Propulsion slot (x1) 4533 | -9/Materials | Reached level 7 4540 | -9/Materials | Upgraded with Utility slot (x1) 4875 | -9/Materials | Reached level 8 5018 | -9/Materials | Discovered new exit (range 11) 5129 | -9/Materials | Discovered new exit (range 8) 5150 | -9/Materials | Reached level 9 5209 | -9/Materials | First assault squad dispatched 5299 | -9/Materials | Central database locked down 5332 | -9/Materials | Discovered new exit (range 17) 5471 | -9/Materials | Reached level 10 5504 | -9/Materials | Build established: Hacker-Sprinter 5554 | -9/Materials | Upgraded with Utility slot (x1) 5613 | -9/Materials | Identified exit to Materials 5613 | -9/Materials | Identified exit to Mines 5926 | -9/Materials | Sterilization system engaged 5926 | -9/Materials | Non-combat units ordered to evacuate 6026 | -9/Materials | Combat units ordered to evacuate 6042 | -9/Materials | Entered Mines 6044 | -9/Mines | Reached level 11 6051 | -9/Mines | Learned location of Zion (-7) 6060 | -9/Mines | Central database locked down 6079 | -9/Mines | Found a damaged Exp. Sensor Array with a note attached 6081 | -9/Mines | Found Prototype Device 6081 | -9/Mines | Identified Exp. Sensor Array 6095 | -9/Mines | Found a hidden stash of uninstalled traps 6122 | -9/Mines | Discovered exit to Materials (range 12) 6133 | -9/Mines | Discovered exit to Materials (range 4) 6134 | -9/Mines | A Derelict revealed a hidden shortcut to a safe place 6222 | -9/Mines | Assisted by bots powering up and referring to "LRC-V3" 6263 | -9/Mines | Entered Materials 6273 | -8/Materials | Reached level 12 6421 | -8/Materials | Upgraded with Utility slot (x1) 6426 | -8/Materials | Destroyed 7 combat bots 6525 | -8/Materials | Discovered new exit (range 11) 6556 | -8/Materials | Reached level 13 6567 | -8/Materials | Build established: Wizard-Sprinter 6701 | -8/Materials | Identified exit to Factory 6765 | -8/Materials | Destroyed 10 combat bots 6889 | -8/Materials | Discovered exit to Factory (range 11) 6907 | -8/Materials | Core integrity fell below 50% 6910 | -8/Materials | Reached level 14 6920 | -8/Materials | Self-destructed Last Messages --------------- 06905_ Acquired VTOL Module. 06906_ The unstable cave ceiling collapses. 06906_ Knocked back. 06908_ C-17 Slicer destroyed. 06910_ Reached level 14. 06910_ A-02 Transporter destroyed. 06912_ The unstable cave ceiling collapses. 06912_ Slug penetrates Earth. 06912_ G-47 Trooper destroyed. 06913_ The unstable cave ceiling collapses. 06914_ H-61 Shepherd calls for reinforcements. 06914_ ALERT: Hostile activity reported, dispatching reinforcements to area. 06914_ Rocket Launcher blasted off. 06917_ Acquired 2 matter. 06917_ Acquired 80 matter. 06918_ Acquired 5 matter. 06918_ Hacking Suite destroyed. 06918_ Critical hit (Blast). 06919_ Acquired 6 matter. 06919_ W-25 Informer sends out distress signal. Map ----- +----------------------------------------------------+ | #### ??????????????????????????? | | # #????? ????????????????????????? | | * ##??? ????????????????????????? | | ### ## #????????????????????????? | | #### ???????????????????????? | | ???# ???????????????????????? | | ???## ""????????????????????????? | | ????#" # #### "T????????????????????????? | | ###### # #?????? ??????????????????????? | | # #!![[!!#?????? ?????????????????????? | | # #!![[!!#?????= [/=?????????????????????? | | " ########?????= [/=?????????????????????? | | # #???????????= [/ ?????????????????????? | | * #??????????? ?????????????????????? | | ########## ! ???###???????????????? | | ] = ? ??????????????? | | w ???????????????? | | +#### """ """ ?? ??????????? | | # ## ######## """ """ ??????????? | | ##??# """ """ ??????????? | | % ##?# ?????????? | | #### #?# ?????????? | | ?###### !*] ##?# ?????????? | |